bitfinex/quotes_BTCUSD_20240918
["timestamp","ask_amount","ask_price","bid_price","bid_amount"]
[1726685676950,0.03,60984.0,60976.0,0.023]
[1726685677165,0.03,60979.0,60977.0,0.00327929]
[1726685677405,0.00021163,60985.0,60975.0,0.47585999]
[1726685677406,0.03,60976.0,60975.0,0.49885999]
[1726685677627,0.03,60971.0,60970.0,0.03291]
[1726685677870,0.03,60971.0,60960.0,0.03291]
[1726685678092,0.03,60982.0,60968.0,0.03291]
[1726685678312,0.00021163,60985.0,60972.0,0.03491]
[1726685678533,0.00021163,60985.0,60978.0,0.03291]
[1726685678534,0.03,60984.0,60978.0,0.03291]
[1726685678756,0.03,60984.0,60979.0,0.05591]
[1726685678970,0.03,60984.0,60981.0,0.023]
[1726685679184,0.03,60984.0,60982.0,0.44294999]
[1726685679621,0.03,60984.0,60983.0,0.03291]
[1726685679829,0.03,60984.0,60983.0,0.05591]
[1726685680043,0.03,60984.0,60982.0,0.44294999]
[1726685680044,0.06,60984.0,60982.0,0.44294999]
[1726685680253,0.09,60984.0,60980.0,0.03291]
[1726685680477,0.09,60984.0,60974.0,0.00327927]
[1726685680478,0.03,60975.0,60974.0,0.00327927]
[1726685680711,0.09,60975.0,60957.0,0.13291]
[1726685680966,0.09,60975.0,60959.0,0.03291]
[1726685681250,0.09,60975.0,60966.0,0.03291]
[1726685681456,0.09,60975.0,60969.0,0.13291]
[1726685681670,0.09,60975.0,60974.0,0.007]
[1726685683386,0.09,60975.0,60962.0,0.03291]
[1726685683600,0.02573861,60981.0,60917.0,0.41281134]
[1726685683601,0.09,60960.0,60954.0,0.03291]
[1726685683807,0.03,60959.0,60949.0,0.03291]
[1726685684016,0.03,60959.0,60951.0,0.03291]
[1726685684225,0.06,60952.0,60951.0,0.03619061]
[1726685684437,0.03,60959.0,60951.0,0.03291]
[1726685684851,0.46268051,60970.0,60949.0,0.03291]
[1726685684852,0.03,60952.0,60949.0,0.03291]
[1726685685061,0.46268051,60970.0,60925.0,0.16578]
[1726685685062,0.09,60947.0,60926.0,0.00328124]
[1726685685288,0.09,60938.0,60925.0,0.001646]
[1726685685509,0.12,60938.0,60925.0,0.001646]
[1726685685741,0.09,60923.0,60901.0,0.001644]
[1726685685983,0.55268051,60923.0,60901.0,0.001644]
[1726685686223,0.74468051,60923.0,60922.0,0.00223104]
[1726685686500,0.74468051,60923.0,60901.0,0.001644]
[1726685686501,0.09,60902.0,60901.0,0.001644]
[1726685687466,0.11577128,60902.0,60901.0,0.001544]
[1726685687723,0.09,60902.0,60901.0,0.001544]
[1726685687960,0.092,60902.0,60901.0,0.001444]
[1726685688188,0.09528169,60902.0,60901.0,0.001444]
[1726685688402,0.092,60902.0,60901.0,0.001444]
[1726685689187,0.09528169,60902.0,60901.0,0.001444]
[1726685689409,0.09528169,60902.0,60888.0,0.001648]
[1726685689410,0.09,60896.0,60888.0,0.001648]
[1726685689632,0.55268051,60896.0,60888.0,0.001648]
[1726685690065,0.57845593,60896.0,60888.0,0.001648]
[1726685690714,0.59245593,60896.0,60895.0,0.0068875]
[1726685691393,0.69245593,60896.0,60895.0,0.0068875]
[1726685691828,0.09,60889.0,60888.0,0.001648]
[1726685692062,0.09,60889.0,60888.0,0.001548]
[1726685692272,0.09,60889.0,60872.0,0.001644]
[1726685692273,0.252,60886.0,60872.0,0.001644]
[1726685692499,0.89247268,60886.0,60885.0,0.001542]
[1726685692742,1.87798268,60886.0,60885.0,0.001442]
[1726685692968,0.192,60872.0,60871.0,0.0001]
[1726685693195,0.55268051,60872.0,60871.0,0.0001]
[1726685693845,0.57846815,60872.0,60871.0,0.0001]
[1726685694311,0.57846815,60872.0,60871.0,0.0011]
[1726685694312,0.59246815,60872.0,60871.0,0.0011]
[1726685694764,0.56668051,60872.0,60871.0,0.0011]
[1726685695911,0.55268051,60872.0,60871.0,0.0001]
[1726685696364,0.22547737,60872.0,60871.0,0.0001]
[1726685696637,0.02578536,60872.0,60871.0,0.0001]
[1726685696852,0.03978536,60872.0,60871.0,0.05601]
[1726685697064,0.03978536,60872.0,60871.0,0.04966502]
[1726685697290,0.24629935,60894.0,60871.0,0.04966502]
[1726685697291,0.06,60889.0,60872.0,0.123]
[1726685697506,0.03,60880.0,60872.0,0.115]
[1726685697721,0.98553724,60888.0,60871.0,0.0001]
[1726685697722,0.09,60872.0,60871.0,0.0001]
[1726685698190,0.32834,60913.0,60871.0,0.0001]
[1726685698191,0.05578057,60879.0,60871.0,0.0001]
[1726685698407,0.03,60874.0,60872.0,0.04867749]
[1726685698638,0.002,60902.0,60872.0,0.04867749]
[1726685698639,0.03,60885.0,60873.0,0.03619498]
[1726685699062,0.03,60880.0,60873.0,0.03291]
[1726685699276,0.02577885,60888.0,60873.0,0.03291]
[1726685699277,0.02577885,60888.0,60873.0,0.03619476]
[1726685699500,0.06,60890.0,60877.0,0.03291]
[1726685699714,0.03,60881.0,60876.0,0.023]
[1726685699926,0.03,60881.0,60875.0,0.023]
[1726685699927,0.09,60881.0,60875.0,0.023]
[1726685700377,0.09,60872.0,60871.0,0.000922]
[1726685701047,0.11578538,60872.0,60871.0,0.000922]
[1726685701270,0.21578538,60872.0,60871.0,0.000922]
[1726685701484,0.21578538,60872.0,60851.0,0.0001]
[1726685701485,0.22,60865.0,60851.0,0.0001]
[1726685701701,0.22,60846.0,60845.0,0.0031548]
[1726685701980,1.4438652,60846.0,60845.0,0.0031548]
[1726685702213,0.66482568,60846.0,60845.0,0.0031548]
[1726685702428,0.71048565,60846.0,60845.0,0.0031548]
[1726685702646,0.67848565,60846.0,60845.0,0.0031548]
[1726685702864,0.57848565,60846.0,60845.0,0.0031548]
[1726685703084,0.67848565,60846.0,60845.0,0.0031548]
[1726685703331,0.67848565,60846.0,60845.0,0.0030548]
[1726685703550,0.09,60842.0,60811.0,0.0001]
[1726685703790,0.09,60842.0,60811.0,0.00338771]
[1726685704004,0.09,60842.0,60815.0,0.0032874]
[1726685704233,0.09,60842.0,60811.0,0.0001]
[1726685704234,0.09,60842.0,60811.0,0.00338764]
[1726685704479,0.09,60842.0,60814.0,0.44883749]
[1726685705195,0.104,60842.0,60815.0,0.0032874]
[1726685705716,0.104,60842.0,60819.0,0.00996433]
[1726685705914,0.104,60842.0,60820.0,0.00328722]
[1726685706131,0.104,60842.0,60829.0,0.44294999]
[1726685706361,0.03,60846.0,60831.0,0.00338703]
[1726685706595,0.03,60845.0,60831.0,0.0001]
[1726685706829,0.002,60869.0,60831.0,0.0001]
[1726685706830,0.104,60842.0,60831.0,0.0001]
[1726685707074,0.06,60842.0,60831.0,0.0001]
[1726685707329,0.03,60846.0,60831.0,0.0001]
[1726685707550,0.012,60842.0,60841.0,0.0288875]
[1726685707775,0.02579409,60846.0,60845.0,0.023]
[1726685707997,0.03,60856.0,60845.0,0.023]
[1726685707998,0.03,60856.0,60845.0,0.019]
[1726685708212,0.03,60852.0,60845.0,0.019]
[1726685708446,0.02579001,60859.0,60852.0,0.1]
[1726685708665,0.98605553,60858.0,60852.0,0.1]
[1726685708886,0.03,60864.0,60830.0,0.32878]
[1726685708887,0.03,60857.0,60839.0,0.1]
[1726685709111,0.03,60860.0,60845.0,0.1]
[1726685709339,0.03,60854.0,60845.0,0.1]
[1726685709548,0.03,60860.0,60845.0,0.1]
[1726685709770,0.03,60862.0,60850.0,0.44294999]
[1726685709990,0.03,60863.0,60852.0,0.023]
[1726685710208,0.03,60863.0,60851.0,0.10328569]
[1726685710209,0.02578739,60857.0,60854.0,0.023]
[1726685710427,0.007,60860.0,60858.0,0.1]
[1726685710659,0.007,60860.0,60859.0,0.023]
[1726685710907,0.02578542,60866.0,60863.0,0.023]
[1726685711126,0.01720294,60904.0,60859.0,0.03891371]
[1726685711127,0.03,60882.0,60874.0,0.023]
[1726685711354,0.02578068,60879.0,60878.0,0.123]
[1726685711574,0.02578068,60879.0,60878.0,0.63517344]
[1726685711793,0.03,60894.0,60878.0,0.63517344]
[1726685711794,0.03,60892.0,60882.0,0.023]
[1726685712032,0.06,60899.0,60878.0,0.63517344]
[1726685712033,0.03,60899.0,60891.0,0.05591]
[1726685712287,0.001648,60912.0,60899.0,0.15591]
[1726685712288,0.031648,60912.0,60899.0,0.15591]
[1726685712505,0.031648,60912.0,60891.0,0.1]
[1726685712506,0.031648,60912.0,60907.0,0.123]
[1726685712945,0.0257642,60909.0,60908.0,0.05919296]
[1726685713401,0.0257642,60909.0,60908.0,0.05919298]
[1726685713606,0.001648,60912.0,60911.0,0.15591]
[1726685713830,0.0031153,60921.0,60918.0,0.03291]
[1726685714054,0.0031153,60921.0,60920.0,0.13291]
[1726685714275,0.0031153,60921.0,60920.0,0.15591]
[1726685714490,0.0331153,60921.0,60920.0,0.03291]
[1726685714726,0.0931153,60921.0,60920.0,0.03291]
[1726685714943,0.0331153,60921.0,60920.0,0.03291]
[1726685715368,0.0341153,60921.0,60920.0,0.03291]
[1726685716049,0.0041153,60921.0,60920.0,0.05591]
[1726685716260,0.0041153,60921.0,60920.0,0.215796]
[1726685716710,0.0031153,60921.0,60920.0,0.71352611]
[1726685716946,0.0031153,60921.0,60920.0,0.38322711]
[1726685717178,0.0041153,60921.0,60920.0,0.21907811]
[1726685717424,0.0031153,60921.0,60920.0,0.215796]
[1726685717655,0.0031548,60935.0,60932.0,0.023]
[1726685717877,0.03,60944.0,60932.0,0.023]
[1726685717878,0.0055133,60946.0,60944.0,0.023]
[1726685718108,0.0055133,60946.0,60945.0,0.29036293]
[1726685718362,0.0055133,60946.0,60945.0,0.123]
[1726685719248,0.0055133,60946.0,60945.0,0.023]
[1726685719467,0.0055133,60946.0,60945.0,0.287082]
[1726685719696,0.0055133,60946.0,60945.0,0.32327246]
[1726685719918,0.0055133,60946.0,60945.0,1.05942757]
[1726685720512,0.0065133,60946.0,60945.0,0.73126357]
[1726685720924,0.0055133,60946.0,60945.0,0.219992]
[1726685721123,0.0055133,60946.0,60945.0,0.648156]
[1726685721331,0.0055133,60946.0,60945.0,0.123]
[1726685721332,0.0065133,60946.0,60945.0,0.123]
[1726685721536,0.0065133,60946.0,60945.0,0.12628057]
[1726685721745,0.03020471,60956.0,60945.0,0.28605367]
[1726685721746,0.00020471,60956.0,60945.0,0.28605367]
[1726685721975,0.00020471,60956.0,60952.0,0.123]
[1726685722180,0.00020471,60956.0,60955.0,0.592165]
[1726685722346,0.00020471,60956.0,60955.0,0.123]
[1726685722785,0.00020471,60956.0,60955.0,0.29033487]
[1726685722988,0.03020471,60956.0,60955.0,0.023]
[1726685723189,0.03020471,60956.0,60949.0,0.1]
[1726685723384,0.03,60954.0,60947.0,0.00968424]
[1726685723610,0.03,60954.0,60942.0,0.44294999]
[1726685723820,0.03,60954.0,60948.0,0.44294999]
[1726685724027,0.03,60954.0,60949.0,0.00328042]
[1726685724240,0.03,60954.0,60948.0,0.44294999]
[1726685724433,0.03,60954.0,60950.0,0.00328052]
[1726685724638,0.03,60954.0,60949.0,0.1]
[1726685724887,0.031,60954.0,60950.0,0.05757545]
[1726685725122,0.03,60954.0,60950.0,0.00328045]
[1726685725322,0.00020471,60956.0,60950.0,0.00328045]
[1726685725523,0.00020471,60956.0,60955.0,0.56594999]
[1726685725981,0.00020471,60956.0,60955.0,0.123]
[1726685726417,0.00020471,60956.0,60950.0,0.00328027]
[1726685726418,0.03,60955.0,60950.0,0.00328027]
[1726685726627,0.03,60955.0,60951.0,0.023]
[1726685726832,0.00020471,60956.0,60951.0,0.08391403]
[1726685727038,0.00120471,60956.0,60955.0,0.73700499]
[1726685727259,0.00120471,60956.0,60955.0,1.06011499]
[1726685727260,0.00020471,60956.0,60955.0,1.06011499]
[1726685727534,0.00020471,60956.0,60955.0,1.38822499]
[1726685727729,0.00020471,60956.0,60955.0,1.42113499]
[1726685727858,0.00020471,60956.0,60955.0,1.57171082]
[1726685728080,0.00020471,60956.0,60955.0,1.58571082]
[1726685728081,0.00120471,60956.0,60955.0,1.58571082]
[1726685728884,0.00120471,60956.0,60955.0,2.07687449]
[1726685729088,0.001648,60970.0,60969.0,0.59885999]
[1726685729317,0.001648,60970.0,60969.0,0.123]
[1726685729488,0.001648,60970.0,60969.0,0.15591]
[1726685729828,0.001648,60970.0,60969.0,0.975997]
[1726685729998,0.001648,60970.0,60969.0,0.649962]
[1726685730177,0.001648,60970.0,60969.0,0.2053516]
[1726685730382,0.001648,60970.0,60969.0,0.32991524]
[1726685730599,0.001648,60970.0,60969.0,0.24318476]
[1726685730817,0.002648,60970.0,60969.0,0.25018476]
[1726685731049,0.002648,60970.0,60969.0,0.24318476]
[1726685731277,0.003648,60970.0,60969.0,0.46692238]
[1726685731480,0.003648,60970.0,60969.0,1.07355078]
[1726685731908,0.003648,60970.0,60969.0,0.79167836]
[1726685732128,0.003648,60970.0,60969.0,0.46364336]
[1726685732355,0.003648,60970.0,60969.0,0.65399867]
[1726685732638,0.001648,60970.0,60969.0,1.13905067]
[1726685732832,0.0001,60979.0,60972.0,0.002]
[1726685733040,0.000822,60990.0,60970.0,0.123]
[1726685733041,0.000822,60990.0,60986.0,0.15791]
[1726685733257,0.000822,60990.0,60988.0,0.15591]
[1726685733462,0.000822,60990.0,60986.0,0.002]
[1726685733463,0.000822,60990.0,60989.0,1.16653294]
[1726685733678,0.000822,60990.0,60989.0,1.49445994]
[1726685733942,0.000822,60990.0,60989.0,0.61992298]
[1726685734153,0.000822,60990.0,60989.0,1.11181298]
[1726685734380,0.000823,60995.0,60994.0,0.493851]
[1726685734585,0.000823,60995.0,60994.0,1.15478637]
[1726685734826,0.000823,60995.0,60994.0,0.77744377]
[1726685735026,0.000823,60995.0,60994.0,0.15591]
[1726685735248,0.000823,60995.0,60994.0,0.975662]
[1726685735457,0.000823,61003.0,60998.0,0.649728]
[1726685735662,0.000823,61003.0,60998.0,1.14066067]
[1726685735878,0.000823,61003.0,60998.0,1.51798127]
[1726685736102,0.000823,61003.0,60998.0,1.0120214]
[1726685736314,0.000823,61003.0,60998.0,0.47364713]
[1726685736544,0.000823,61003.0,61002.0,0.002]
[1726685736755,0.000823,61003.0,61002.0,1.14388579]
[1726685736966,0.000823,61003.0,61002.0,1.47174379]
[1726685737169,0.000823,61003.0,61002.0,1.52118539]
[1726685737780,0.000823,61009.0,61005.0,1.305353]
[1726685737997,0.000823,61009.0,61005.0,1.67226081]
[1726685738206,0.000823,61009.0,61005.0,0.15591]
[1726685738419,0.000823,61009.0,61005.0,0.13291]
[1726685738865,0.000823,61009.0,61005.0,0.03291]
[1726685739312,0.031644,61007.0,61005.0,0.03291]
[1726685739532,0.001644,61007.0,61005.0,0.03291]
[1726685739759,0.001644,61007.0,60990.0,0.04282962]
[1726685739760,0.091644,61007.0,60990.0,0.04282962]
[1726685739970,0.091644,61007.0,61005.0,0.014]
[1726685739971,0.0331548,61006.0,61005.0,0.014]
[1726685740199,0.03,61000.0,60990.0,0.03618787]
[1726685740458,0.03,61000.0,60989.0,0.02106299]
[1726685740459,0.0331548,61006.0,61005.0,0.014]
[1726685740688,0.0331548,61006.0,60999.0,0.44294999]
[1726685740689,0.0931548,61006.0,61000.0,0.03291]
[1726685740935,0.03,60995.0,60987.0,0.44294999]
[1726685741387,0.09,60989.0,60975.0,0.044295]
[1726685741612,0.03,60989.0,60974.0,0.00327894]
[1726685741818,0.03,60989.0,60980.0,0.03291]
[1726685742036,0.03,61001.0,60987.0,0.03291]
[1726685742253,0.06,61002.0,60997.0,0.44294999]
[1726685742254,0.98351788,60998.0,60997.0,0.44294999]
[1726685742477,0.03,60999.0,60997.0,0.44294999]
[1726685742682,0.03,60994.0,60991.0,0.44294999]
[1726685742949,0.03,60994.0,60992.0,0.023]
[1726685743390,0.03,60994.0,60979.0,0.327978]
[1726685743391,0.06,60988.0,60987.0,0.001]
[1726685743622,0.03,60988.0,60987.0,0.001]
[1726685743856,0.03,60987.0,60984.0,0.44294999]
[1726685744081,0.03,60982.0,60961.0,0.002]
[1726685744329,0.03,60979.0,60962.0,0.00327899]
[1726685744550,0.03,60979.0,60967.0,0.00999657]
[1726685744787,0.03,60985.0,60970.0,0.03618932]
[1726685745040,0.03,60985.0,60972.0,0.03291]
[1726685745041,0.0295,60985.0,60972.0,0.03291]
[1726685745273,0.0295,60989.0,60984.0,0.47585999]
[1726685745494,0.0295,60989.0,60984.0,0.03291]
[1726685745729,0.0031548,61006.0,60987.0,0.026]
[1726685745730,0.0295,60995.0,60987.0,0.026]
[1726685745964,0.03,60996.0,60989.0,0.023]
[1726685746193,0.0031548,61006.0,60991.0,0.023]
[1726685746194,0.0295,60999.0,60991.0,0.023]
[1726685746423,0.0295,60999.0,60987.0,0.32249507]
[1726685746424,0.0295,60999.0,60993.0,0.05591]
[1726685746654,0.0295,61001.0,60995.0,0.023]
[1726685747153,0.0295,61001.0,60999.0,0.44294999]
[1726685747388,0.0295,61000.0,60999.0,0.44294999]
[1726685747900,0.0295,61003.0,60999.0,0.44294999]
[1726685748185,0.0295,61005.0,61001.0,0.023]
[1726685748403,0.0031548,61006.0,61005.0,0.123]
[1726685748636,0.0031548,61006.0,60993.0,0.327904]
[1726685748637,0.03,61000.0,60997.0,0.1]
[1726685748862,0.03,61000.0,60936.0,0.08129194]
[1726685748863,0.03,60996.0,60969.0,0.002822]
[1726685749067,0.0295,60987.0,60976.0,0.03291]
[1726685749502,0.0031548,61006.0,60976.0,0.03291]
[1726685749503,0.0295,60988.0,60976.0,0.03291]
[1726685749726,0.0295,60997.0,60987.0,0.44294999]
[1726685749956,0.0031548,61006.0,60996.0,0.44294999]
[1726685749957,0.0295,60999.0,60996.0,0.44294999]
[1726685750168,0.0295,60999.0,60998.0,0.44294999]
[1726685750607,0.0895,60999.0,60991.0,0.44294999]
[1726685750820,0.03,60994.0,60992.0,0.1]
[1726685751034,0.0295,60999.0,60993.0,0.113496]
[1726685751238,0.0295,60999.0,60995.0,0.023]
[1726685751485,0.0031548,61006.0,60998.0,0.44294999]
[1726685751486,0.0295,61001.0,60998.0,0.44294999]
[1726685751702,0.0295,61003.0,60999.0,0.02627791]
[1726685752142,0.06,61005.0,61003.0,0.023]
[1726685752143,0.02572515,61005.0,61003.0,0.023]
[1726685752373,0.05522515,61005.0,61003.0,0.023]
[1726685752594,0.0295,61005.0,61003.0,0.023]
[1726685753266,0.0031548,61006.0,61003.0,0.02627792]
[1726685753473,0.0031548,61006.0,61003.0,0.17649171]
[1726685753710,0.0031548,61006.0,61003.0,0.12627792]
[1726685753942,0.0895,61004.0,61003.0,0.002]
[1726685754148,0.0595,61004.0,61003.0,0.002]
[1726685754354,0.0895,61004.0,61003.0,0.002]
[1726685754772,0.0295,61004.0,61003.0,0.002]
[1726685755007,0.0295,61002.0,61001.0,0.44294999]
[1726685755257,0.0631548,61006.0,61002.0,0.123]
[1726685755258,0.0031548,61006.0,61002.0,0.123]
[1726685755500,0.0031548,61006.0,61005.0,0.614761]
[1726685755754,0.0031548,61006.0,61005.0,1.10765567]
[1726685756150,0.0031548,61006.0,61005.0,1.46840667]
[1726685756381,0.001644,61007.0,61006.0,0.9775]
[1726685756613,0.001644,61007.0,61006.0,1.46838967]
[1726685757047,0.001644,61007.0,61006.0,1.13855367]
[1726685757252,0.001644,61007.0,61006.0,0.647664]
[1726685757699,0.000823,61009.0,61007.0,0.03291]
[1726685757939,0.000823,61009.0,61007.0,0.59885999]
[1726685758166,0.000823,61009.0,61005.0,0.014]
[1726685758419,0.000823,61009.0,61001.0,0.47585999]
[1726685758630,0.0295,61005.0,61001.0,0.47585999]
[1726685758841,0.001822,61008.0,61007.0,0.014]
[1726685759055,0.000822,61008.0,61007.0,0.04930023]
[1726685759265,0.000822,61008.0,61007.0,0.08221023]
[1726685759475,0.001822,61008.0,61007.0,0.03618744]
[1726685759689,0.000822,61008.0,61007.0,0.05591]
[1726685759898,0.000822,61008.0,61007.0,0.02627738]
[1726685760114,0.000822,61008.0,61007.0,0.04027738]
[1726685760115,0.001822,61008.0,61007.0,0.04027738]
[1726685760333,0.001822,61008.0,61007.0,0.01727763]
[1726685760537,0.001822,61008.0,61007.0,0.014]
[1726685760759,0.001822,61008.0,61007.0,0.07297268]
[1726685760980,0.001822,61008.0,61007.0,0.014]
[1726685761463,0.001822,61008.0,61007.0,0.04027768]
[1726685761726,0.001822,61008.0,61007.0,0.63202368]
[1726685761964,0.001822,61008.0,61007.0,0.30419268]
[1726685762195,0.001822,61008.0,61007.0,0.66493368]
[1726685762412,0.001822,61008.0,61007.0,1.31890393]
[1726685762657,0.001822,61008.0,61007.0,1.64673493]
[1726685763127,0.001822,61008.0,61007.0,1.31890393]
[1726685763568,0.001822,61008.0,61007.0,1.32090393]
[1726685764060,0.001822,61008.0,61007.0,1.33063476]
[1726685764303,0.001822,61008.0,61007.0,1.65846576]
[1726685764538,0.001822,61008.0,61007.0,1.32735708]
[1726685765427,0.001822,61008.0,61007.0,1.65518808]
[1726685765676,0.000921,61019.0,61016.0,0.977865]
[1726685765967,0.000921,61019.0,61018.0,0.97734]
[1726685766186,0.000921,61019.0,61018.0,1.46816567]
[1726685766408,0.000921,61019.0,61018.0,0.647568]
[1726685766647,0.000921,61019.0,61018.0,0.319796]
[1726685766872,0.000921,61019.0,61018.0,0.15591]
[1726685767102,0.000921,61019.0,61018.0,0.13618679]
[1726685767319,0.000921,61019.0,61016.0,0.45694999]
[1726685767541,0.000921,61019.0,61018.0,0.03291]
[1726685767998,0.000921,61019.0,61016.0,0.014]
[1726685768247,0.000921,61019.0,61009.0,0.44294999]
[1726685768485,0.000921,61019.0,61013.0,0.03291]
[1726685768714,0.000821,61023.0,61013.0,0.03291]
[1726685768715,0.000821,61023.0,61019.0,0.16388]
[1726685768940,0.000821,61023.0,61020.0,0.33103631]
[1726685769160,0.000821,61023.0,61022.0,0.524535]
[1726685769390,0.000821,61023.0,61022.0,0.196785]
[1726685769646,0.000821,61023.0,61022.0,0.23810375]
[1726685769865,0.000821,61023.0,61022.0,0.61717874]
[1726685770089,0.000821,61023.0,61022.0,0.59885999]
[1726685770313,0.000821,61023.0,61022.0,0.60887139]
[1726685770537,0.090321,61023.0,61022.0,0.13291]
[1726685770757,0.090321,61023.0,61016.0,0.44294999]
[1726685770758,0.0295,61020.0,61017.0,0.03291]
[1726685771016,0.03,61018.0,61017.0,0.03291]
[1726685771466,0.0001,61039.0,61024.0,0.03291]
[1726685771708,0.0031548,61042.0,61017.0,0.21063967]
[1726685771709,0.0031548,61042.0,61041.0,0.524382]
[1726685771935,0.98334863,61058.0,61044.0,0.03291]
[1726685772162,0.98334863,61058.0,61050.0,0.95191]
[1726685772386,0.0001,61059.0,61050.0,2.21311366]
[1726685772607,0.0001,61059.0,61050.0,2.23661366]
[1726685773058,0.0001,61059.0,61050.0,1.90851366]
[1726685773299,0.0001,61059.0,61050.0,1.25334557]
[1726685773549,0.0001,61059.0,61050.0,1.41639924]
[1726685773772,0.0001,61059.0,61050.0,1.58094557]
[1726685773987,0.0001,61059.0,61050.0,1.25334557]
[1726685774418,0.0001,61059.0,61050.0,1.41639924]
[1726685774643,0.0001,61059.0,61055.0,0.647269]
[1726685774875,0.0001,61059.0,61057.0,0.03291]
[1726685775094,0.0001,61059.0,61058.0,0.05918456]
[1726685775544,0.0001,61059.0,61058.0,0.32296257]
[1726685775771,0.0001,61059.0,61058.0,0.15918439]
[1726685775993,0.0001,61059.0,61058.0,0.60213438]
[1726685776214,0.0001,61059.0,61058.0,0.72548412]
[1726685776442,0.0001,61059.0,61058.0,0.61285999]
[1726685777622,0.0001,61059.0,61058.0,0.59885999]
[1726685778055,0.0001,61059.0,61058.0,0.61285999]
[1726685778280,0.0001,61059.0,61058.0,0.59885999]
[1726685778511,0.0001,61059.0,61058.0,0.61285999]
[1726685778737,0.0501,61059.0,61058.0,0.61285999]
[1726685778997,0.0796,61059.0,61058.0,0.49885999]
[1726685779225,0.1396,61059.0,61058.0,0.014]
[1726685780784,0.0595,61057.0,61056.0,0.03291]
[1726685781531,0.0501,61059.0,61058.0,0.03291]
[1726685781768,0.0501,61059.0,61058.0,0.06991]
[1726685782026,0.0501,61059.0,61058.0,0.05918484]
[1726685782282,0.0501,61059.0,61058.0,0.15918484]
[1726685782514,0.001644,61060.0,61058.0,0.15918484]
[1726685782515,0.001644,61060.0,61059.0,0.319686]
[1726685782739,0.001644,61060.0,61059.0,0.76246723]
[1726685782970,0.001644,61060.0,61059.0,0.76046723]
[1726685783202,0.001644,61060.0,61059.0,0.75719305]
[1726685783438,0.001644,61060.0,61059.0,1.08474505]
[1726685783696,0.001644,61065.0,61059.0,1.08474505]
[1726685783697,0.001644,61065.0,61064.0,0.427525]
[1726685783962,0.0031548,61078.0,61073.0,0.03291]
[1726685784198,0.0031548,61078.0,61077.0,0.15591]
[1726685784946,0.0031548,61078.0,61077.0,0.59885999]
[1726685785197,0.0326548,61078.0,61077.0,0.49885999]
[1726685785520,0.0326548,61078.0,61077.0,0.50685999]
[1726685785757,0.0326548,61078.0,61077.0,0.49885999]
[1726685786271,0.0295,61072.0,61071.0,0.54294999]
[1726685787226,0.0295,61072.0,61071.0,0.57585999]
[1726685787465,0.0295,61072.0,61071.0,0.59885999]
[1726685788476,0.0295,61072.0,61071.0,0.61285999]
[1726685788713,0.0295,61072.0,61071.0,0.59885999]
[1726685788932,0.0295,61067.0,61066.0,0.03291]
[1726685789177,0.0895,61067.0,61066.0,0.03291]
[1726685789392,0.03,61066.0,61061.0,0.03291]
[1726685789615,0.03,61064.0,61061.0,0.03291]
[1726685789835,0.0295,61062.0,61061.0,0.03291]
[1726685790063,0.0295,61062.0,61038.0,0.327662]
[1726685790064,0.0895,61059.0,61034.0,0.16305367]
[1726685790282,0.0895,61059.0,61040.0,0.163824]
[1726685790515,0.0895,61059.0,61058.0,0.44294999]
[1726685791194,0.0295,61057.0,61026.0,0.002]
[1726685791424,0.02570134,61063.0,61011.0,0.327804]
[1726685791425,0.0295,61045.0,61034.0,0.01]
[1726685791684,0.0295,61043.0,61028.0,0.04255405]
[1726685791904,0.02570134,61063.0,61032.0,0.327694]
[1726685791905,0.0295,61048.0,61032.0,0.327694]
[1726685792126,0.98280903,61060.0,61039.0,0.327657]
[1726685792127,0.03,61051.0,61039.0,0.327657]
[1726685792378,0.0895,61057.0,61050.0,0.44294999]
[1726685792595,0.0295,61054.0,61050.0,0.44294999]
[1726685792811,0.0295,61054.0,61051.0,0.1]
[1726685793304,0.0595,61054.0,61051.0,0.1]
[1726685793522,0.0895,61054.0,61051.0,0.1]
[1726685793740,0.02570488,61058.0,61044.0,0.44294999]
[1726685793741,0.0595,61051.0,61044.0,0.44294999]
[1726685793970,0.03,61042.0,61033.0,0.04907477]
[1726685794231,0.03,61042.0,61034.0,0.00327605]
[1726685794459,0.03,61041.0,61019.0,0.327765]
[1726685794693,0.03,61035.0,61007.0,0.003642]
[1726685794940,0.98280903,61050.0,61010.0,0.163905]
[1726685794941,0.03,61028.0,61010.0,0.163905]
[1726685795159,0.03,61028.0,61008.0,0.16305367]
[1726685795160,0.0295,61029.0,61024.0,0.44294999]
[1726685795386,0.06,61034.0,61033.0,0.014]
[1726685795387,0.0895,61034.0,61033.0,0.014]
[1726685796538,0.03,61019.0,61018.0,0.44294999]
[1726685796781,0.03,61018.0,61002.0,0.002]
[1726685797002,0.03,61018.0,61007.0,0.33847]
[1726685797231,0.03,61018.0,61008.0,0.327824]
[1726685797467,0.03,61021.0,61008.0,0.00327746]
[1726685797687,0.02571445,61040.0,61008.0,0.00327746]
[1726685797688,0.03,61024.0,61020.0,0.44294999]
[1726685797904,0.03,61024.0,61021.0,0.1]
[1726685798130,0.0595,61032.0,61022.0,0.023]
[1726685798131,0.03,61026.0,61022.0,0.023]
[1726685798347,0.03,61026.0,61022.0,0.26083385]
[1726685798562,0.0595,61033.0,61024.0,0.123]
[1726685798563,0.03,61030.0,61024.0,0.123]
[1726685798782,0.0595,61033.0,61024.0,0.123]
[1726685798783,0.0895,61033.0,61024.0,0.123]
[1726685798999,0.03,61033.0,61028.0,0.123]
[1726685799455,0.03,61033.0,61028.0,0.286859]
[1726685799719,0.03,61037.0,61032.0,0.44294999]